bitfinex/quotes_SOLUSD_20241223
["timestamp","ask_amount","ask_price","bid_price","bid_amount"]
[1734983820886,7.1069,187.75,187.67,13.96827845]
[1734983821083,7.1069,187.75,187.66,13.96827845]
[1734983821583,1.2545,187.75,187.67,13.96827845]
[1734983822613,1.2545,187.75,187.64,1.7211]
[1734983822614,0.12549,187.74,187.65,13.96827845]
[1734983822924,0.12549,187.74,187.64,1.7211]
[1734983823223,0.12549,187.74,187.65,13.96827845]
[1734983823923,21.2545,187.75,187.67,13.96827845]
[1734983824126,6.70893676,187.78,187.68,13.96827845]
[1734983824298,20.0,187.76,187.68,13.96827845]
[1734983824723,20.0,187.76,187.69,13.96827845]
[1734983824919,1.2205,187.79,187.72,13.96827845]
[1734983825106,1.2205,187.84,187.74,13.96827845]
[1734983825791,0.12549,187.83,187.74,13.96827845]
[1734983826745,20.0,187.82,187.75,13.96827845]
[1734983829423,18.12965603,187.85,187.78,13.96827845]
[1734983829615,18.12965603,187.85,187.79,13.96827845]
[1734983829811,7.0729,187.89,187.79,13.96827845]
[1734983830122,7.0729,187.89,187.8,13.96827845]
[1734983833936,7.0729,187.89,187.77,23.776884]
[1734983834138,7.0729,187.89,187.79,13.96827845]
[1734983835126,7.0729,187.89,187.8,13.96827845]
[1734983836230,20.0,187.86,187.75,13.96827845]
[1734983836408,0.12549,187.85,187.74,13.96827845]
[1734983837231,0.12549,187.85,187.75,13.96827845]
[1734983837625,0.12549,187.85,187.74,13.96827845]
[1734983838454,0.12549,187.85,187.73,13.96827845]
[1734983838611,0.12549,187.85,187.72,15.72507845]
[1734983839141,0.12549,187.85,187.73,13.96827845]
[1734983839648,23.902374,187.85,187.72,1.7568]
[1734983839847,20.0,187.82,187.72,1.7568]
[1734983840149,0.12549,187.79,187.7,13.96827845]
[1734983840322,0.12549,187.79,187.69,13.96827845]
[1734983840837,0.12549,187.79,187.67,13.96827845]
[1734983841139,0.12549,187.79,187.66,21.95487845]
[1734983841313,0.12549,187.75,187.65,13.96827845]
[1734983842336,0.12549,187.75,187.64,13.96827845]
[1734983842630,0.12549,187.73,187.62,13.96827845]
[1734983842826,20.0,187.71,187.61,13.96827845]
[1734983844236,20.0,187.71,187.62,13.96827845]
[1734983844629,20.0,187.71,187.61,13.96827845]
[1734983846646,20.0,187.71,187.63,13.96827845]
[1734983846827,7.0729,187.74,187.67,13.96827845]
[1734983847031,1.2205,187.74,187.66,13.96827845]
[1734983847247,1.2205,187.74,187.64,13.96827845]
[1734983847549,1.2205,187.74,187.63,13.96827845]
[1734983847722,1.2205,187.74,187.64,13.96827845]
[1734983848746,1.2205,187.74,187.61,23.776884]
[1734983848747,1.2205,187.74,187.65,13.96827845]
[1734983849248,1.2205,187.74,187.64,13.96827845]
[1734983851045,1.2205,187.74,187.63,13.96827845]
[1734983851655,1.2205,187.74,187.64,13.96827845]
[1734983851948,1.2205,187.74,187.63,13.96827845]
[1734983852126,0.12549,187.75,187.65,13.96827845]
[1734983852651,20.0,187.76,187.65,13.96827845]
[1734983853664,20.0,187.76,187.64,13.96827845]
[1734983854741,20.0,187.76,187.65,13.96827845]
[1734983855540,20.0,187.76,187.64,13.96827845]
[1734983855954,0.12549,187.75,187.64,13.96827845]
[1734983856547,0.12549,187.75,187.63,13.96827845]
[1734983857164,0.12549,187.75,187.64,13.96827845]
[1734983857945,20.0,187.76,187.65,13.96827845]
[1734983858259,20.0,187.76,187.65,8.93995309]
[1734983859368,20.0,187.76,187.67,8.93995309]
[1734983859548,20.0,187.76,187.66,8.93995309]
[1734983859865,0.12549,187.75,187.64,8.93995309]
[1734983860045,0.12549,187.75,187.63,8.93995309]
[1734983860972,1.2215,187.74,187.61,8.93995309]
[1734983861970,1.2215,187.74,187.62,8.93995309]
[1734983863075,1.2215,187.74,187.63,28.93995309]
[1734983863439,1.2215,187.74,187.64,8.93995309]
[1734983864151,1.2215,187.74,187.63,28.93995309]
[1734983864341,0.12549,187.71,187.57,1.8558]
[1734983864550,0.12549,187.68,187.57,10.79575309]
[1734983865660,1.2215,187.67,187.55,13.3292]
[1734983865853,0.12549,187.66,187.55,8.93995309]
[1734983866053,1.2215,187.67,187.56,8.93995309]
[1734983866269,1.2215,187.67,187.59,13.98152548]
[1734983866771,1.2215,187.67,187.6,13.98152548]
[1734983868181,1.2215,187.67,187.59,13.98152548]
[1734983868756,1.2215,187.67,187.6,13.98152548]
[1734983871683,20.0,187.69,187.6,13.98152548]
[1734983872581,20.0,187.69,187.52,35.0473]
[1734983872582,20.0,187.69,187.54,37.107284]
[1734983872770,20.0,187.69,187.56,13.98152548]
[1734983873596,20.0,187.69,187.58,13.98152548]
[1734983874196,20.0,187.69,187.6,13.98152548]
[1734983874696,20.0,187.69,187.59,13.98152548]
[1734983876284,20.0,187.69,187.56,13.3284]
[1734983876480,20.0,187.69,187.58,13.98152548]
[1734983876665,20.0,187.69,187.59,13.98152548]
[1734983877401,20.0,187.69,187.61,13.98152548]
[1734983878198,1.2215,187.71,187.61,13.98152548]
[1734983878569,1.2215,187.71,187.6,13.98152548]
[1734983878769,1.2215,187.71,187.62,13.98152548]
[1734983878991,1.2215,187.71,187.63,13.98152548]
[1734983881092,1.2215,187.71,187.64,13.98152548]
[1734983881280,21.2215,187.71,187.65,13.98152548]
[1734983881991,21.2215,187.71,187.63,37.75840948]
[1734983882194,21.2215,187.71,187.59,1.7665]
[1734983882393,0.59627951,187.7,187.56,20.37172548]
[1734983882698,0.59627951,187.7,187.56,6.3902]
[1734983883398,0.59627951,187.7,187.55,13.98152548]
[1734983884101,0.59627951,187.7,187.56,13.98152548]
[1734983885291,0.12549,187.68,187.55,13.98152548]
[1734983885495,20.12549,187.65,187.51,13.98152548]
[1734983886080,1.2152,187.64,187.51,13.98152548]
[1734983886586,0.12549,187.63,187.51,13.98152548]
[1734983886785,0.12549,187.63,187.5,13.98152548]
[1734983886984,0.12549,187.63,187.49,13.98152548]
[1734983886985,25.8524,187.6,187.49,13.98152548]
[1734983887907,25.8524,187.6,187.5,13.98152548]
[1734983888604,25.8524,187.6,187.51,23.776884]
[1734983889672,25.8524,187.6,187.5,23.776884]
[1734983890086,25.8524,187.6,187.5,37.75840948]
[1734983890798,25.8524,187.6,187.5,23.776884]
[1734983891196,25.8524,187.6,187.5,13.98152548]
[1734983892095,25.8524,187.6,187.49,37.75840948]
[1734983892301,0.12549,187.58,187.48,0.6698204]
[1734983893279,1.68598951,187.59,187.48,0.6698204]
[1734983894406,1.68598951,187.59,187.48,14.65134588]
[1734983894783,1.68598951,187.59,187.48,0.6698204]
[1734983896505,0.12549,187.58,187.48,0.6698204]
[1734983897201,0.59627951,187.58,187.48,0.6698204]
[1734983897604,0.47078951,187.58,187.48,0.6698204]
[1734983897781,1.2152,187.59,187.48,0.6698204]
[1734983897782,1.2152,187.59,187.5,13.98152548]
[1734983897982,1.2152,187.59,187.48,14.65134588]
[1734983898200,1.2152,187.59,187.49,23.776884]
[1734983898408,1.2152,187.59,187.48,0.6698204]
[1734983899089,20.0,187.57,187.48,0.6698204]
[1734983900514,20.0,187.57,187.48,14.65134588]
[1734983901413,20.0,187.57,187.48,0.6698204]
[1734983901722,20.0,187.52,187.48,0.6698204]
[1734983908329,6.1144416,187.56,187.48,14.65134588]
[1734983908529,21.2152,187.56,187.48,0.6698204]
[1734983908905,23.48719314,187.56,187.48,0.6698204]
[1734983910993,3.48719314,187.56,187.49,23.776884]
[1734983911227,1.2152,187.56,187.49,23.776884]
[1734983912199,21.2152,187.56,187.49,23.776884]
[1734983912398,21.2152,187.56,187.48,0.6698204]
[1734983915704,23.48719314,187.56,187.48,0.6698204]
[1734983915913,2.27199314,187.55,187.48,0.6698204]
[1734983919115,20.0,187.52,187.48,0.6698204]
[1734983922722,5.8524,187.51,187.48,0.6698204]
[1734983923052,20.0,187.49,187.48,0.6698204]
[1734983928888,20.0,187.49,187.37,6.6418]
[1734983928889,0.12549,187.51,187.37,6.6418]
[1734983929049,20.0,187.47,187.37,6.6418]
[1734983929748,20.0,187.47,187.35,1.7606]
[1734983929969,20.0,187.47,187.35,10.71733918]
[1734983931392,22.27199314,187.47,187.36,23.776884]
[1734983931551,22.27199314,187.47,187.35,1.7606]
[1734983931756,22.27199314,187.47,187.35,10.71733918]
[1734983932895,22.27199314,187.47,187.36,32.73362318]
[1734983933079,22.27199314,187.47,187.36,23.776884]
[1734983934150,22.27199314,187.47,187.38,9.08222918]
[1734983934385,2.27199314,187.47,187.39,23.776884]
[1734983935085,22.27199314,187.47,187.39,23.776884]
[1734983935552,22.27199314,187.47,187.35,15.1041]
[1734983935749,22.27199314,187.47,187.36,23.776884]
[1734983936210,2.27199314,187.47,187.4,0.12549]
[1734983936415,1.1338,187.54,187.45,8.95673918]
[1734983936604,14.83554495,187.57,187.47,32.85911318]
[1734983938175,14.83554495,187.57,187.47,23.902374]
[1734983939484,14.83554495,187.57,187.47,32.85911318]
[1734983940090,14.83554495,187.57,187.47,23.902374]
[1734983941811,14.83554495,187.57,187.47,32.85911318]
[1734983942377,14.83554495,187.57,187.47,23.776884]
[1734983942719,14.83554495,187.57,187.46,23.776884]
[1734983943441,14.83554495,187.57,187.46,32.73362318]
[1734983943583,14.83554495,187.57,187.48,23.776884]
[1734983943783,14.83554495,187.57,187.49,0.12549]
[1734983943989,14.83554495,187.57,187.49,9.08222918]
[1734983944493,14.83554495,187.57,187.5,23.776884]
[1734983944824,14.83554495,187.57,187.49,23.776884]
[1734983945022,14.83554495,187.57,187.48,23.902374]
[1734983945311,14.83554495,187.57,187.48,32.85911318]
[1734983945614,14.83554495,187.57,187.5,23.902374]
[1734983945804,14.83554495,187.57,187.51,23.776884]
[1734983946820,5.8524,187.69,187.55,8.95673918]
[1734983946997,1.131,187.68,187.56,23.776884]
[1734983947255,1.131,187.68,187.56,32.73362318]
[1734983947581,1.131,187.68,187.56,23.776884]
[1734983948242,1.131,187.68,187.56,32.73362318]
[1734983949152,20.0,187.66,187.57,0.12549]
[1734983949362,0.90964242,187.69,187.58,25.463184]
[1734983949551,0.90964242,187.69,187.58,34.41992318]
[1734983949747,5.3519499,187.7,187.62,23.776884]
[1734983950185,1.131,187.72,187.62,23.776884]
[1734983950479,1.131,187.72,187.61,23.902374]
[1734983950648,20.0,187.7,187.61,23.902374]
[1734983950984,20.0,187.7,187.59,37.75349764]
[1734983951184,20.0,187.7,187.6,14.10210364]
[1734983951387,1.131,187.72,187.61,23.776884]
[1734983952078,0.91813396,187.73,187.63,12.97661364]
[1734983952379,0.91813396,187.75,187.65,23.902374]
[1734983953363,0.91813396,187.75,187.65,37.87898764]
[1734983953570,0.91813396,187.75,187.65,23.902374]
[1734983953949,0.91813396,187.75,187.65,37.87898764]
[1734983954152,0.91813396,187.75,187.67,23.776884]
[1734983954470,15.41966884,187.76,187.67,23.776884]
[1734983959264,15.41966884,187.76,187.67,37.75349764]
[1734983960381,15.41966884,187.76,187.67,23.776884]
[1734983960685,20.0,187.73,187.61,1.692]
[1734983960992,20.0,187.73,187.61,15.66861364]
[1734983961159,20.0,187.73,187.62,13.97661364]
[1734983961489,20.0,187.73,187.63,13.97661364]
[1734983961861,20.0,187.73,187.61,15.66861364]
[1734983962063,20.0,187.73,187.62,23.776884]
[1734983962375,20.0,187.71,187.62,23.776884]
[1734983962760,20.0,187.71,187.61,15.66861364]
[1734983962965,20.0,187.71,187.6,6.3567]
[1734983964002,20.0,187.71,187.58,13.97661364]
[1734983964680,20.0,187.71,187.59,13.97661364]
[1734983965260,20.0,187.71,187.58,13.97661364]
[1734983965968,20.0,187.71,187.58,23.776884]
[1734983967593,1.82777638,187.7,187.57,1.7511]
[1734983968593,1.131,187.68,187.55,23.776884]
[1734983968794,5.8524,187.66,187.52,15.64701364]
[1734983968992,20.0,187.63,187.52,15.64701364]
[1734983969195,20.0,187.63,187.53,13.97661364]
[1734983969970,20.0,187.63,187.52,15.64701364]
[1734983970602,20.0,187.63,187.53,23.776884]
[1734983970806,20.0,187.63,187.53,37.75349764]
[1734983971503,20.0,187.63,187.54,14.10210364]
[1734983971705,20.0,187.63,187.55,37.75349764]
[1734983971912,20.0,187.63,187.54,0.12549]
[1734983972893,5.8524,187.66,187.54,0.12549]
[1734983973824,5.8524,187.66,187.54,9.07747938]
[1734983974118,5.8524,187.66,187.55,32.72887338]
[1734983974613,5.8524,187.66,187.57,8.95198938]
[1734983974990,2.95877638,187.68,187.58,8.95198938]
[1734983975291,1.131,187.68,187.59,8.95198938]
[1734983976226,1.131,187.68,187.59,13.97975782]
[1734983977496,1.131,187.68,187.58,13.97975782]
[1734983980723,21.131,187.68,187.55,23.776884]
[1734983980897,21.131,187.68,187.57,20.0]
[1734983981611,21.131,187.68,187.6,13.97975782]
[1734983981612,1.131,187.68,187.6,13.97975782]
[1734983982107,1.131,187.68,187.61,23.776884]
[1734983982310,1.131,187.68,187.6,23.902374]
[1734983983611,1.131,187.68,187.61,23.776884]
[1734983983921,1.131,187.68,187.6,0.12549]
[1734983988528,1.131,187.68,187.61,23.776884]
[1734983988736,1.131,187.68,187.61,13.97975782]
[1734983989234,1.131,187.68,187.6,0.12549]
[1734983989629,1.131,187.68,187.59,23.776884]
[1734983990735,1.131,187.68,187.58,43.776884]
[1734983991110,1.131,187.68,187.58,57.75664182]
[1734983993440,1.131,187.68,187.58,43.776884]
[1734983993739,1.131,187.68,187.58,57.75664182]
[1734983995312,1.131,187.68,187.59,0.12549]
[1734983996513,21.131,187.68,187.58,52.72408253]
[1734984000237,21.131,187.68,187.51,22.643]
[1734984000238,0.79942055,187.67,187.51,17.82872607]
[1734984000420,8.004,187.62,187.52,0.12549]
[1734984000625,20.0,187.59,187.52,9.07268853]
[1734984000844,8.004,187.62,187.54,9.07268853]
[1734984001944,8.004,187.62,187.52,13.3319]
[1734984002146,8.004,187.62,187.49,8.94719853]
[1734984002147,24.57630455,187.61,187.49,8.94719853]
[1734984002321,0.79942055,187.61,187.49,8.94719853]
[1734984002522,23.776884,187.6,187.51,8.94719853]
[1734984002829,0.79942055,187.59,187.49,8.94719853]
[1734984003010,0.79942055,187.59,187.42,13.339]
[1734984003011,0.79942055,187.59,187.42,24.1851]
[1734984003212,0.79942055,187.59,187.51,8.94719853]
[1734984003415,0.79942055,187.59,187.42,24.1851]
[1734984003628,8.004,187.62,187.51,8.94719853]
[1734984003829,1.6533,187.62,187.56,8.94719853]
[1734984004474,8.99262055,187.66,187.58,8.94719853]
[1734984004635,8.1932,187.66,187.61,8.94719853]
[1734984004963,1.695,187.66,187.61,8.94719853]
[1734984005154,8.0139,187.71,187.62,8.94719853]
[1734984005357,0.79942055,187.75,187.65,8.94719853]
[1734984005541,7.11832055,187.75,187.66,8.94719853]
[1734984005741,0.79942055,187.75,187.66,8.94719853]
[1734984006054,0.79942055,187.75,187.65,8.94719853]
[1734984006260,7.17123474,187.74,187.62,8.94719853]
[1734984006454,0.79942055,187.73,187.61,20.0]
[1734984006757,7.17123474,187.72,187.57,8.94719853]
[1734984006962,23.776884,187.7,187.55,8.94719853]
[1734984007137,23.776884,187.68,187.56,0.12549]
[1734984007337,0.79942055,187.67,187.56,0.12549]
[1734984007533,20.0,187.65,187.51,1.7037]
[1734984007862,0.79942055,187.64,187.54,8.94719853]
[1734984008262,20.0,187.65,187.57,0.12549]
[1734984008445,7.9949,187.71,187.59,8.94719853]
[1734984008760,20.0,187.68,187.59,8.94719853]
[1734984009063,20.79942055,187.67,187.55,28.94719853]
[1734984009263,0.79942055,187.67,187.56,8.94719853]
[1734984009479,20.0,187.68,187.58,0.12549]
[1734984009640,20.0,187.68,187.56,0.12549]
[1734984009641,0.79942055,187.7,187.6,9.07268853]
[1734984009840,7.9949,187.71,187.62,8.94719853]
[1734984010072,7.9949,187.71,187.61,23.776884]
[1734984010370,1.6819,187.71,187.64,13.97100732]
[1734984010680,0.79942055,187.74,187.63,0.12549]
[1734984010876,0.79942055,187.74,187.6,13.97100732]
[1734984011099,7.17123474,187.73,187.57,13.97100732]
[1734984011403,8.2887,187.67,187.55,8.34691419]
[1734984011568,0.79942055,187.66,187.55,8.34691419]
[1734984012066,23.776884,187.65,187.55,8.34691419]
[1734984012288,0.79942055,187.64,187.55,8.34691419]
[1734984012482,0.12549,187.63,187.48,22.31792151]
[1734984012658,20.0,187.6,187.48,22.31792151]
[1734984012873,0.79942055,187.59,187.49,14.09649732]
[1734984013098,20.0,187.6,187.51,0.12549]
[1734984013256,0.79942055,187.63,187.52,13.97100732]
[1734984013461,20.0,187.62,187.53,14.09649732]
[1734984013989,0.79942055,187.71,187.56,13.97100732]
[1734984014196,0.79942055,187.66,187.56,13.97100732]
[1734984014360,0.79942055,187.66,187.51,13.332]
[1734984014361,0.79942055,187.66,187.55,13.97100732]
[1734984014561,0.79942055,187.66,187.56,13.97100732]
[1734984015310,0.79942055,187.66,187.57,13.97100732]
[1734984015464,0.79942055,187.74,187.58,13.97100732]
[1734984015975,0.79942055,187.74,187.6,13.97100732]
[1734984016185,8.4158,187.72,187.63,22.35566277]
[1734984016372,8.4158,187.72,187.65,22.35566277]
[1734984016770,19.93367404,187.75,187.67,22.35566277]
[1734984017013,19.13425349,187.75,187.67,22.35566277]
[1734984017375,19.13425349,187.75,187.65,22.35566277]
[1734984017573,0.79942055,187.74,187.62,22.35566277]
[1734984017793,0.12549,187.73,187.57,8.34691419]
[1734984017979,20.0,187.67,187.57,8.34691419]
[1734984018188,24.57630455,187.66,187.53,22.35566277]
[1734984018409,23.776884,187.65,187.55,22.35566277]
[1734984018590,0.79942055,187.64,187.54,22.35566277]
[1734984018791,23.776884,187.63,187.54,22.35566277]
[1734984018994,23.776884,187.61,187.52,8.34691419]
[1734984019184,6.531,187.59,187.48,30.70257696]
[1734984019384,0.79942055,187.58,187.49,22.48115277]
[1734984019614,6.531,187.59,187.52,22.35566277]
[1734984019794,20.0,187.6,187.52,22.35566277]
[1734984020821,1.7968,187.62,187.52,22.35566277]
[1734984020980,2.59622055,187.62,187.53,22.35566277]
[1734984021917,2.59622055,187.62,187.52,22.35566277]
[1734984022389,2.59622055,187.62,187.54,0.12549]
[1734984023490,1.7968,187.62,187.54,0.12549]
[1734984024291,1.7968,187.62,187.53,0.12549]
[1734984024593,1.7968,187.62,187.53,22.48115277]
[1734984024795,6.531,187.63,187.53,22.48115277]
[1734984025917,6.531,187.63,187.52,0.12549]
[1734984026225,6.531,187.63,187.54,0.12549]
[1734984027606,23.776884,187.65,187.55,22.35566277]
[1734984027930,20.79942055,187.64,187.55,22.35566277]
[1734984028227,20.79942055,187.64,187.54,22.48115277]
[1734984028824,20.79942055,187.64,187.55,22.35566277]
[1734984029123,23.776884,187.66,187.57,22.35566277]
[1734984029323,0.79942055,187.65,187.54,0.12549]
[1734984029627,20.0,187.63,187.53,42.35566277]
[1734984029922,0.79942055,187.62,187.54,22.35566277]
[1734984030227,20.0,187.63,187.55,22.48115277]
[1734984030401,0.79942055,187.65,187.56,22.35566277]
[1734984031212,0.79942055,187.66,187.56,22.35566277]
[1734984031526,0.79942055,187.66,187.55,22.35566277]
[1734984032028,0.79942055,187.66,187.58,22.35566277]
[1734984032205,7.7833,187.67,187.59,22.35566277]
[1734984032817,6.1331,187.71,187.62,22.35566277]
[1734984032983,6.1331,187.71,187.63,22.35566277]
[1734984033187,7.17123474,187.74,187.65,22.48115277]
[1734984033426,19.13425349,187.75,187.7,22.35566277]
[1734984033796,0.79942055,187.76,187.67,22.35566277]
[1734984034029,0.79942055,187.76,187.69,0.12549]
[1734984034197,7.9008,187.77,187.7,22.48115277]
[1734984034400,7.9008,187.77,187.69,22.35566277]
[1734984034908,0.79942055,187.76,187.68,42.35566277]
[1734984035109,7.9008,187.77,187.69,22.35566277]
[1734984035407,7.9008,187.77,187.68,42.35566277]
[1734984035808,0.79942055,187.76,187.68,42.35566277]
[1734984036010,7.9008,187.77,187.68,20.0]
[1734984036220,7.9008,187.77,187.68,42.35566277]
[1734984036526,0.79942055,187.76,187.68,42.35566277]
[1734984037019,7.9008,187.77,187.68,42.35566277]
[1734984037226,0.79942055,187.76,187.68,20.0]
[1734984037529,7.9008,187.77,187.68,42.35566277]
[1734984038330,23.776884,187.75,187.64,13.96545085]
[1734984038627,0.79942055,187.74,187.64,13.96545085]
[1734984039328,0.79942055,187.74,187.65,33.96545085]
[1734984039531,15.8016,187.77,187.67,13.96545085]
[1734984039730,15.8016,187.77,187.68,13.96545085]
[1734984039939,0.79942055,187.76,187.68,13.96545085]
[1734984040099,0.79942055,187.76,187.67,13.96545085]
[1734984040299,0.79942055,187.76,187.66,14.09094085]
[1734984040827,0.79942055,187.76,187.67,13.96545085]
[1734984042529,7.9008,187.77,187.67,13.96545085]
[1734984042942,7.9008,187.77,187.68,13.96545085]
[1734984043415,0.79942055,187.76,187.66,13.96545085]
[1734984043811,0.79942055,187.76,187.67,13.96545085]
[1734984044930,7.9008,187.77,187.67,13.96545085]
[1734984045098,7.9008,187.77,187.68,13.96545085]
[1734984045805,0.79942055,187.76,187.67,13.96545085]
[1734984046005,0.79942055,187.76,187.64,13.96545085]
[1734984046006,23.776884,187.75,187.64,13.96545085]
[1734984046204,0.79942055,187.74,187.63,13.96545085]
[1734984046509,23.776884,187.73,187.63,13.96545085]
[1734984046719,0.79942055,187.72,187.63,13.96545085]
[1734984047344,0.79942055,187.72,187.64,13.96545085]
[1734984047537,0.79942055,187.76,187.64,13.96545085]
[1734984047841,23.776884,187.73,187.63,33.96545085]
[1734984048134,23.776884,187.71,187.59,13.96545085]
[1734984048328,0.79942055,187.7,187.59,13.96545085]
[1734984049259,0.79942055,187.7,187.61,13.96545085]
[1734984049857,23.776884,187.72,187.62,13.96545085]
[1734984050051,0.79942055,187.73,187.64,13.96545085]
[1734984050345,23.776884,187.76,187.66,13.96545085]
[1734984050545,0.79942055,187.75,187.65,13.96545085]
[1734984051055,7.9008,187.77,187.68,13.96545085]
[1734984051239,7.9008,187.77,187.69,13.96545085]
[1734984051750,7.9008,187.77,187.7,13.96545085]
[1734984052116,7.9008,187.77,187.7,22.34045213]
[1734984052321,7.9008,187.77,187.71,22.34045213]
[1734984052517,1.8705,187.81,187.73,22.34045213]
[1734984052741,1.8705,187.81,187.74,22.34045213]
[1734984052949,1.8705,187.81,187.75,22.34045213]
[1734984053266,1.8705,187.81,187.74,22.34045213]
[1734984053613,0.79942055,187.8,187.71,20.0]
[1734984054016,0.79942055,187.8,187.69,22.34045213]
[1734984054235,0.79942055,187.8,187.71,22.34045213]
[1734984054651,1.8705,187.81,187.73,22.34045213]
[1734984054956,1.8705,187.81,187.66,14.24621564]
[1734984054957,1.8705,187.81,187.74,22.34045213]
[1734984055123,1.8705,187.81,187.66,40.89011564]
[1734984055124,2.66992055,187.81,187.73,22.34045213]
[1734984058256,23.776884,187.8,187.69,22.34045213]
[1734984058570,0.79942055,187.79,187.7,22.34045213]
[1734984058749,0.79942055,187.79,187.71,22.34045213]
[1734984058936,2.66992055,187.81,187.73,22.34045213]
[1734984059466,2.66992055,187.81,187.72,22.34045213]
[1734984059928,2.66992055,187.81,187.73,22.34045213]
[1734984060327,1.8705,187.81,187.76,22.34045213]
[1734984060537,6.1409,187.87,187.77,22.34045213]
[1734984060834,0.79942055,187.86,187.77,22.34045213]
[1734984061760,0.79942055,187.86,187.76,22.34045213]
[1734984062967,0.79942055,187.86,187.75,20.0]
[1734984062968,24.78886148,187.85,187.75,20.0]
[1734984063168,24.78886148,187.85,187.73,22.34045213]
[1734984063169,23.776884,187.81,187.69,22.34045213]
[1734984063470,23.776884,187.79,187.67,22.34045213]
[1734984063675,0.79942055,187.78,187.67,22.34045213]
[1734984064040,0.79942055,187.78,187.68,22.46594213]
[1734984064239,0.79942055,187.79,187.71,22.34045213]
[1734984064465,0.79942055,187.79,187.69,22.34045213]
[1734984064648,0.79942055,187.79,187.69,20.0]
[1734984064949,0.79942055,187.79,187.68,22.34045213]
[1734984065352,0.79942055,187.79,187.66,13.3217]
[1734984065542,1.7411,187.77,187.65,22.34045213]
[1734984065753,43.776884,187.75,187.64,22.34045213]
[1734984065953,0.79942055,187.74,187.64,22.34045213]
[1734984068183,0.79942055,187.74,187.65,22.34045213]
[1734984068381,0.79942055,187.74,187.66,22.34045213]
[1734984072075,23.776884,187.71,187.61,22.34045213]
[1734984072254,0.79942055,187.7,187.6,13.9777771]
[1734984072450,1.799,187.69,187.6,13.9777771]
[1734984072644,0.79942055,187.68,187.6,13.9777771]
[1734984073860,1.799,187.69,187.6,13.9777771]
[1734984074162,1.799,187.69,187.61,13.9777771]
[1734984074368,1.799,187.69,187.56,2.636359]
[1734984074369,1.799,187.69,187.62,13.9777771]
[1734984074546,1.799,187.69,187.64,13.9777771]
[1734984074919,1.8602,187.74,187.67,13.9777771]
[1734984075253,1.8602,187.74,187.68,13.9777771]
[1734984076171,1.8602,187.74,187.67,22.34833156]
[1734984076375,1.8602,187.74,187.68,22.34833156]
[1734984077174,6.2912,187.76,187.7,22.34833156]
[1734984077876,6.2912,187.76,187.69,22.34833156]
[1734984079906,6.2912,187.76,187.68,22.34833156]
[1734984086196,0.79942055,187.75,187.66,22.47382156]
[1734984086398,6.2912,187.76,187.66,22.47382156]
[1734984087385,6.2912,187.76,187.68,22.34833156]
[1734984088807,0.79942055,187.75,187.66,22.34833156]
[1734984089179,1.01197748,187.76,187.71,22.34833156]
[1734984089383,1.812,187.79,187.72,22.34833156]
[1734984089954,1.812,187.79,187.7,22.34833156]
[1734984090121,1.812,187.79,187.71,22.34833156]
[1734984090411,1.812,187.79,187.73,22.34833156]
[1734984090592,1.812,187.79,187.7,20.12549]
[1734984090593,1.812,187.79,187.72,22.34833156]
[1734984090778,1.812,187.79,187.7,22.47382156]
[1734984091094,1.812,187.79,187.71,22.34833156]
[1734984091798,1.8313,187.86,187.79,0.12549]
[1734984092003,1.8313,187.86,187.81,22.34833156]
[1734984092197,1.8313,187.86,187.79,0.79842696]
[1734984092391,2.63072055,187.86,187.77,22.34833156]
[1734984092604,1.8313,187.86,187.77,22.34833156]
[1734984092820,1.8313,187.86,187.8,22.34833156]
[1734984093122,1.8313,187.86,187.78,22.34833156]
[1734984093417,2.63072055,187.86,187.78,22.34833156]
[1734984093618,2.63072055,187.86,187.75,22.34833156]
[1734984093826,2.63072055,187.86,187.73,22.34833156]
[1734984094023,20.0,187.84,187.72,22.34833156]
[1734984094229,0.79942055,187.83,187.72,22.34833156]
[1734984095692,20.0,187.78,187.64,0.79880947]
[1734984095893,1.885,187.72,187.61,50.08148514]
[1734984096097,6.2646,187.7,187.61,50.08148514]
[1734984096327,0.79942055,187.69,187.61,8.34691419]
[1734984097397,20.0,187.67,187.57,13.980012]
[1734984097629,1.872,187.65,187.56,13.980012]